[Event "Late-Titled-Tuesday-Blitz-April-16-2024"]
[Site "Chess.com"]
[Date "2024.04.16"]
[Round "4"]
[White "TangerineandLemon25"]
[Black "TigrVShlyape"]
[Result "0-1"]
[WhiteElo "2602"]
[BlackElo "2932"]
[TimeControl "180+1"]
[EndTime "14:38:15 PDT"]
[Termination "TigrVShlyape won by resignation"]

1. e4 {[%clk 0:03:00.9]} 1... c5 {[%clk 0:02:57.4]} 2. Nf3 {[%clk 0:03:00.9]}
2... e6 {[%clk 0:02:56.9]} 3. g3 {[%clk 0:02:56.9]} 3... a6 {[%clk 0:02:55.6]}
4. Bg2 {[%clk 0:02:55.1]} 4... b5 {[%clk 0:02:54.9]} 5. O-O {[%clk 0:02:54.3]}
5... Bb7 {[%clk 0:02:55.3]} 6. Re1 {[%clk 0:02:54.8]} 6... Ne7 {[%clk
0:02:51.4]} 7. d4 {[%clk 0:02:54.5]} 7... cxd4 {[%clk 0:02:50.5]} 8. Nxd4 {[%clk
0:02:55.4]} 8... Nbc6 {[%clk 0:02:45.1]} 9. e5 {[%clk 0:02:43.1]} 9... Qc7
{[%clk 0:02:38]} 10. Nc3 {[%clk 0:02:29.5]} 10... Nxd4 {[%clk 0:02:36.8]} 11.
Bxb7 {[%clk 0:02:23.1]} 11... Qxb7 {[%clk 0:02:35.6]} 12. Qxd4 {[%clk
0:02:23.5]} 12... Nf5 {[%clk 0:02:30.4]} 13. Qg4 {[%clk 0:02:20.8]} 13... h5
{[%clk 0:02:29.4]} 14. Qe4 {[%clk 0:02:16.9]} 14... Qxe4 {[%clk 0:02:28.2]} 15.
Nxe4 {[%clk 0:02:17.8]} 15... Rc8 {[%clk 0:02:26.5]} 16. c3 {[%clk 0:02:15.1]}
16... Be7 {[%clk 0:02:04.1]} 17. Bg5 {[%clk 0:01:43.8]} 17... Bxg5 {[%clk
0:02:01]} 18. Nxg5 {[%clk 0:01:44.7]} 18... f6 {[%clk 0:01:58.7]} 19. Nf3 {[%clk
0:01:06.7]} 19... Ke7 {[%clk 0:01:54.8]} 20. Rad1 {[%clk 0:01:06.1]} 20... Rc5
{[%clk 0:01:47.1]} 21. h3 {[%clk 0:01:00.8]} 21... a5 {[%clk 0:01:43.7]} 22. Re4
{[%clk 0:00:51.3]} 22... Rhc8 {[%clk 0:01:26]} 23. g4 {[%clk 0:00:48.8]} 23...
hxg4 {[%clk 0:01:25.6]} 24. hxg4 {[%clk 0:00:49.7]} 24... Nh6 {[%clk 0:01:25.7]}
25. g5 {[%clk 0:00:49.7]} 25... fxg5 {[%clk 0:01:16.1]} 26. Nxg5 {[%clk
0:00:49.6]} 26... Nf5 {[%clk 0:01:12.5]} 27. Kg2 {[%clk 0:00:38.8]} 27... Rc4
{[%clk 0:01:01.2]} 28. Kf3 {[%clk 0:00:32.6]} 28... b4 {[%clk 0:01:01.1]} 29.
cxb4 {[%clk 0:00:24.5]} 29... Rxb4 {[%clk 0:00:59.2]} 30. Rd2 {[%clk 0:00:21.6]}
30... Rcb8 {[%clk 0:00:53.7]} 31. b3 {[%clk 0:00:20.7]} 31... Rc8 {[%clk
0:00:51.1]} 32. Rxb4 {[%clk 0:00:19.6]} 32... axb4 {[%clk 0:00:47.7]} 33. Ne4
{[%clk 0:00:20.5]} 33... Ra8 {[%clk 0:00:46.4]} 34. Nc5 {[%clk 0:00:19.7]} 34...
Ra7 {[%clk 0:00:44.1]} 35. Nd3 {[%clk 0:00:19.2]} 35... Rb7 {[%clk 0:00:39.7]}
36. Ke4 {[%clk 0:00:19.8]} 36... Rb5 {[%clk 0:00:39.5]} 37. Rc2 {[%clk
0:00:18.5]} 37... d5+ {[%clk 0:00:34.2]} 38. exd6+ {[%clk 0:00:18.3]} 38...
Nxd6+ {[%clk 0:00:34.6]} 39. Ke3 {[%clk 0:00:18.9]} 39... Nf5+ {[%clk
0:00:32.4]} 40. Ke4 {[%clk 0:00:19.8]} 40... Rd5 {[%clk 0:00:29.8]} 41. Rc7+
{[%clk 0:00:14.8]} 41... Kf6 {[%clk 0:00:28.5]} 42. Nf4 {[%clk 0:00:13.1]} 42...
Rd4+ {[%clk 0:00:26.1]} 43. Kf3 {[%clk 0:00:13.7]} 43... g5 {[%clk 0:00:23.1]}
44. Nh5+ {[%clk 0:00:12.2]} 44... Ke5 {[%clk 0:00:22.7]} 45. Ng3 {[%clk
0:00:13.1]} 45... g4+ {[%clk 0:00:22]} 46. Kg2 {[%clk 0:00:12.8]} 46... Nh4+
{[%clk 0:00:21.2]} 47. Kf1 {[%clk 0:00:13.5]} 47... Nf3 {[%clk 0:00:19.2]} 48.
Rc5+ {[%clk 0:00:13.6]} 48... Kd6 {[%clk 0:00:19.6]} 49. Rb5 {[%clk 0:00:13.9]}
49... Kc6 {[%clk 0:00:19.8]} 50. Ra5 {[%clk 0:00:13.1]} 50... e5 {[%clk
0:00:18.7]} 51. Nf5 {[%clk 0:00:12.5]} 51... Rd1+ {[%clk 0:00:19]} 52. Ke2
{[%clk 0:00:11.8]} 52... Re1+ {[%clk 0:00:19.3]} 53. Kd3 {[%clk 0:00:12.3]}
53... e4+ {[%clk 0:00:18.3]} 54. Kc4 {[%clk 0:00:12.3]} 54... Re2 {[%clk
0:00:18.4]} 55. Nd4+ {[%clk 0:00:10.5]} 55... Kd6 {[%clk 0:00:16.8]} 56. Nf5+
{[%clk 0:00:09.7]} 56... Kc7 {[%clk 0:00:15]} 57. Ra7+ {[%clk 0:00:09.3]} 57...
Kb6 {[%clk 0:00:15.1]} 58. Rg7 {[%clk 0:00:09.2]} 58... Rxf2 {[%clk 0:00:14.3]}
59. Rg6+ {[%clk 0:00:09.7]} 59... Kc7 {[%clk 0:00:13.8]} 60. Rxg4 {[%clk
0:00:10.6]} 60... Ne5+ {[%clk 0:00:13.7]} 61. Kd4 {[%clk 0:00:09.7]} 61... Nxg4
{[%clk 0:00:14.6]} 0-1

[Event "Late-Titled-Tuesday-Blitz-April-16-2024"]
[Site "Chess.com"]
[Date "2024.04.16"]
[Round "4"]
[White "jcibarra"]
[Black "AradNazari"]
[Result "1-0"]
[WhiteElo "2926"]
[BlackElo "2718"]
[TimeControl "180+1"]
[EndTime "14:38:16 PDT"]
[Termination "jcibarra won by resignation"]

1. e4 {[%clk 0:02:59.1]} 1... c5 {[%clk 0:02:48.4]} 2. Nf3 {[%clk 0:02:58.6]}
2... d6 {[%clk 0:02:49]} 3. d4 {[%clk 0:02:58.9]} 3... cxd4 {[%clk 0:02:49.9]}
4. Nxd4 {[%clk 0:02:59.5]} 4... Nf6 {[%clk 0:02:50.7]} 5. Nc3 {[%clk 0:02:59.8]}
5... a6 {[%clk 0:02:51.4]} 6. g3 {[%clk 0:02:59.5]} 6... e5 {[%clk 0:02:34.7]}
7. Nb3 {[%clk 0:02:59.1]} 7... Be7 {[%clk 0:02:31.8]} 8. Bg5 {[%clk 0:02:59.2]}
8... Be6 {[%clk 0:02:22.2]} 9. Bxf6 {[%clk 0:02:58.8]} 9... Bxf6 {[%clk
0:02:22.2]} 10. Qd3 {[%clk 0:02:59.4]} 10... Nc6 {[%clk 0:02:16.9]} 11. O-O-O
{[%clk 0:02:59.5]} 11... Qb6 {[%clk 0:02:12.2]} 12. h4 {[%clk 0:02:51.1]} 12...
Qxf2 {[%clk 0:02:03.9]} 13. Bh3 {[%clk 0:02:51]} 13... Nb4 {[%clk 0:01:54.7]}
14. Qd2 {[%clk 0:02:30.6]} 14... Qxd2+ {[%clk 0:01:49.9]} 15. Rxd2 {[%clk
0:02:31.2]} 15... Ke7 {[%clk 0:01:39.6]} 16. a3 {[%clk 0:02:13.4]} 16... Nc6
{[%clk 0:01:32.5]} 17. Nd5+ {[%clk 0:02:13.9]} 17... Bxd5 {[%clk 0:01:25.4]} 18.
Rxd5 {[%clk 0:02:14.8]} 18... Rhd8 {[%clk 0:01:16.4]} 19. Nd2 {[%clk 0:02:14.9]}
19... Nd4 {[%clk 0:01:10.5]} 20. Bg4 {[%clk 0:02:10.2]} 20... g6 {[%clk
0:01:08.2]} 21. c3 {[%clk 0:02:09.5]} 21... h5 {[%clk 0:01:03.4]} 22. Bd1 {[%clk
0:02:07.6]} 22... Ne6 {[%clk 0:01:02.6]} 23. Nc4 {[%clk 0:02:07.3]} 23... b5
{[%clk 0:00:59.8]} 24. Ne3 {[%clk 0:02:04]} 24... Bg7 {[%clk 0:00:58.8]} 25. Kb1
{[%clk 0:01:57.4]} 25... Bh6 {[%clk 0:00:59.2]} 26. Nc2 {[%clk 0:01:58.1]} 26...
Nc7 {[%clk 0:00:42.4]} 27. Rd3 {[%clk 0:01:56]} 27... d5 {[%clk 0:00:35.5]} 28.
Nb4 {[%clk 0:01:35.3]} 28... Ke6 {[%clk 0:00:14.9]} 29. Bb3 {[%clk 0:01:30.3]}
29... a5 {[%clk 0:00:12.1]} 30. Nxd5 {[%clk 0:01:30.5]} 30... Nxd5 {[%clk
0:00:12.5]} 31. Rxd5 {[%clk 0:01:30.2]} 31... Ke7 {[%clk 0:00:04.1]} 32. Rxe5+
{[%clk 0:01:29.9]} 32... Kf8 {[%clk 0:00:04.6]} 33. Rf1 {[%clk 0:01:29.3]} 33...
Ra7 {[%clk 0:00:03.6]} 34. Rxb5 {[%clk 0:01:29.6]} 34... Rd3 {[%clk 0:00:04.2]}
35. Rg1 {[%clk 0:01:21.1]} 35... Rd2 {[%clk 0:00:04.7]} 36. Bd5 {[%clk
0:01:18.5]} 36... Be3 {[%clk 0:00:05.2]} 37. Rf1 {[%clk 0:01:18.2]} 37... Bf2
{[%clk 0:00:05.8]} 38. e5 {[%clk 0:01:05]} 38... Bxg3 {[%clk 0:00:06]} 39. e6
{[%clk 0:01:03.7]} 39... f5 {[%clk 0:00:06.7]} 40. Rg1 {[%clk 0:00:57.6]} 40...
f4 {[%clk 0:00:05.9]} 41. Be4 {[%clk 0:00:56.1]} 41... Kg7 {[%clk 0:00:05.5]}
42. Rg5 {[%clk 0:00:56.5]} 42... Kf6 {[%clk 0:00:03.9]} 43. Rxg6+ {[%clk
0:00:52.7]} 43... Ke5 {[%clk 0:00:04.6]} 44. Bc2 {[%clk 0:00:52.6]} 44... Re7
{[%clk 0:00:04]} 45. Rg5+ {[%clk 0:00:43.6]} 45... Kxe6 {[%clk 0:00:02.9]} 46.
Rxa5 {[%clk 0:00:43.3]} 46... Kf6 {[%clk 0:00:03.3]} 47. Rf5+ {[%clk 0:00:42.7]}
47... Kg7 {[%clk 0:00:03]} 48. Rxf4 {[%clk 0:00:42.8]} 48... Re1+ {[%clk
0:00:02.1]} 49. Rxe1 {[%clk 0:00:42.6]} 49... Bxe1 {[%clk 0:00:02.9]} 50. Rf5
{[%clk 0:00:37.8]} 50... Kh6 {[%clk 0:00:02.7]} 51. Rf6+ {[%clk 0:00:36.5]}
51... Kg7 {[%clk 0:00:03.4]} 52. Rg6+ {[%clk 0:00:36.6]} 52... Kf7 {[%clk
0:00:04.1]} 53. Rg5 {[%clk 0:00:36.3]} 53... Bxh4 {[%clk 0:00:03.4]} 54. Rxh5
{[%clk 0:00:36.6]} 54... Rh2 {[%clk 0:00:03.4]} 55. a4 {[%clk 0:00:29.2]} 55...
Rh1+ {[%clk 0:00:03.8]} 56. Ka2 {[%clk 0:00:29.3]} 56... Rh2 {[%clk 0:00:04.5]}
57. Kb3 {[%clk 0:00:29.5]} 57... Ke7 {[%clk 0:00:05.1]} 58. a5 {[%clk
0:00:28.7]} 58... Kd6 {[%clk 0:00:05.5]} 59. a6 {[%clk 0:00:28.2]} 59... Kc7
{[%clk 0:00:06.1]} 60. Rh7+ {[%clk 0:00:27.8]} 1-0

[Event "Late-Titled-Tuesday-Blitz-April-16-2024"]
[Site "Chess.com"]
[Date "2024.04.16"]
[Round "4"]
[White "teresin05"]
[Black "ritanovikova"]
[Result "1/2-1/2"]
[WhiteElo "2332"]
[BlackElo "2161"]
[TimeControl "180+1"]
[EndTime "14:38:16 PDT"]
[Termination "Game drawn by repetition"]

1. e4 {[%clk 0:03:00.9]} 1... d5 {[%clk 0:02:59.5]} 2. exd5 {[%clk 0:03:00.7]}
2... Qxd5 {[%clk 0:03:00.4]} 3. Nc3 {[%clk 0:03:00]} 3... Qd6 {[%clk 0:03:00.5]}
4. d4 {[%clk 0:02:59.9]} 4... Nf6 {[%clk 0:03:00.7]} 5. Nf3 {[%clk 0:02:59.8]}
5... c6 {[%clk 0:03:00.8]} 6. g3 {[%clk 0:02:56.5]} 6... Bg4 {[%clk 0:03:00.6]}
7. Bg2 {[%clk 0:02:56.1]} 7... e6 {[%clk 0:03:00.4]} 8. O-O {[%clk 0:02:56]}
8... Qc7 {[%clk 0:02:59.5]} 9. Bf4 {[%clk 0:02:53.6]} 9... Bd6 {[%clk
0:02:58.8]} 10. Bxd6 {[%clk 0:02:49.6]} 10... Qxd6 {[%clk 0:02:43.2]} 11. Qd3
{[%clk 0:02:28.4]} 11... O-O {[%clk 0:02:31.6]} 12. Ne5 {[%clk 0:02:21.2]} 12...
Bf5 {[%clk 0:02:19.5]} 13. Qe3 {[%clk 0:02:15]} 13... Nbd7 {[%clk 0:02:17.9]}
14. Rac1 {[%clk 0:01:41.5]} 14... Nb6 {[%clk 0:02:03.2]} 15. b3 {[%clk 0:01:22]}
15... Nbd5 {[%clk 0:01:55.9]} 16. Nxd5 {[%clk 0:01:07.2]} 16... exd5 {[%clk
0:01:54.8]} 17. Qf4 {[%clk 0:00:59.6]} 17... Be6 {[%clk 0:01:33.9]} 18. Rfe1
{[%clk 0:00:59.1]} 18... Rad8 {[%clk 0:01:32.9]} 19. Re2 {[%clk 0:00:39.4]}
19... Nd7 {[%clk 0:01:24.9]} 20. Rce1 {[%clk 0:00:26]} 20... Nxe5 {[%clk
0:01:24]} 21. Qxe5 {[%clk 0:00:21.2]} 21... Qxe5 {[%clk 0:01:23.2]} 22. Rxe5
{[%clk 0:00:22.1]} 22... g6 {[%clk 0:01:17]} 23. c3 {[%clk 0:00:14]} 23... Kg7
{[%clk 0:01:16.7]} 24. f4 {[%clk 0:00:11.9]} 24... Rd7 {[%clk 0:01:13]} 25. Kf2
{[%clk 0:00:12.2]} 25... Bf5 {[%clk 0:01:11]} 26. h3 {[%clk 0:00:11.2]} 26... h5
{[%clk 0:01:10.8]} 27. Bf3 {[%clk 0:00:10.8]} 27... Rfd8 {[%clk 0:01:07.2]} 28.
g4 {[%clk 0:00:11]} 28... hxg4 {[%clk 0:01:06.8]} 29. hxg4 {[%clk 0:00:11.9]}
29... Bd3 {[%clk 0:01:06.7]} 30. R1e3 {[%clk 0:00:10.6]} 30... Ba6 {[%clk
0:01:04.9]} 31. Re7 {[%clk 0:00:11]} 31... Kf8 {[%clk 0:01:03.5]} 32. R7e5
{[%clk 0:00:09.9]} 32... Kg7 {[%clk 0:01:01.6]} 33. f5 {[%clk 0:00:10.5]} 33...
gxf5 {[%clk 0:01:01.2]} 34. gxf5 {[%clk 0:00:11.4]} 34... Kf6 {[%clk 0:01:01.5]}
35. Kg3 {[%clk 0:00:10.6]} 35... Rg8+ {[%clk 0:01:00.7]} 36. Kf4 {[%clk
0:00:11.3]} 36... Rh8 {[%clk 0:01:00.2]} 37. Be2 {[%clk 0:00:04.3]} 37... Bxe2
{[%clk 0:00:59.1]} 38. Rxe2 {[%clk 0:00:05.2]} 38... Rh4+ {[%clk 0:00:58.4]} 39.
Kg3 {[%clk 0:00:05.6]} 39... Rh5 {[%clk 0:00:57.5]} 40. Rf2 {[%clk 0:00:05.5]}
40... Rg5+ {[%clk 0:00:57.3]} 41. Kf4 {[%clk 0:00:05.9]} 41... Rd8 {[%clk
0:00:55.5]} 42. Rh2 {[%clk 0:00:06.5]} 42... Rg1 {[%clk 0:00:50.8]} 43. Rh6+
{[%clk 0:00:06.6]} 43... Kg7 {[%clk 0:00:51]} 44. Rh4 {[%clk 0:00:06.8]} 44...
Rf1+ {[%clk 0:00:45.8]} 45. Ke3 {[%clk 0:00:07.2]} 45... Re1+ {[%clk 0:00:45.5]}
46. Kf4 {[%clk 0:00:07.7]} 46... Rf1+ {[%clk 0:00:44.7]} 47. Kg3 {[%clk
0:00:08.4]} 47... Rg1+ {[%clk 0:00:44.3]} 48. Kf2 {[%clk 0:00:09]} 48... Ra1
{[%clk 0:00:43.9]} 49. f6+ {[%clk 0:00:04.1]} 49... Kg6 {[%clk 0:00:38.7]} 50.
Rg4+ {[%clk 0:00:04]} 50... Kxf6 {[%clk 0:00:38.6]} 51. Rf4+ {[%clk 0:00:04.3]}
51... Kg6 {[%clk 0:00:37.9]} 52. Ref5 {[%clk 0:00:04.3]} 52... Rxa2+ {[%clk
0:00:37.3]} 53. Kf3 {[%clk 0:00:04.9]} 53... Rc2 {[%clk 0:00:33.7]} 54. Rg4+
{[%clk 0:00:04.3]} 54... Kh6 {[%clk 0:00:32.8]} 55. Rf6+ {[%clk 0:00:04.4]}
55... Kh5 {[%clk 0:00:32.1]} 56. Rf5+ {[%clk 0:00:05]} 56... Kh6 {[%clk
0:00:32.1]} 57. Rf6+ {[%clk 0:00:01.3]} 57... Kh5 {[%clk 0:00:32]} 58. Rf5+
{[%clk 0:00:01.9]} 58... Kh6 {[%clk 0:00:32.2]} 1/2-1/2

[Event "Late-Titled-Tuesday-Blitz-April-16-2024"]
[Site "Chess.com"]
[Date "2024.04.16"]
[Round "4"]
[White "LuckIsMySkill"]
[Black "David_ATM"]
[Result "1-0"]
[WhiteElo "2677"]
[BlackElo "2476"]
[TimeControl "180+1"]
[EndTime "14:38:18 PDT"]
[Termination "LuckIsMySkill won on time"]

1. d4 {[%clk 0:03:00.9]} 1... d5 {[%clk 0:03:00.3]} 2. c4 {[%clk 0:03:00.4]}
2... c6 {[%clk 0:03:01.2]} 3. Nc3 {[%clk 0:03:00.4]} 3... Nf6 {[%clk 0:03:01.8]}
4. Nf3 {[%clk 0:03:00.2]} 4... Bf5 {[%clk 0:03:02.4]} 5. Qb3 {[%clk 0:02:59.5]}
5... Qb6 {[%clk 0:03:00.7]} 6. cxd5 {[%clk 0:02:59.6]} 6... Qxb3 {[%clk
0:02:57.6]} 7. axb3 {[%clk 0:03:00.5]} 7... Nxd5 {[%clk 0:02:57.9]} 8. Bd2
{[%clk 0:02:50.8]} 8... Bg6 {[%clk 0:02:50.2]} 9. Ne5 {[%clk 0:02:49.6]} 9...
Nd7 {[%clk 0:02:45.1]} 10. Nxd5 {[%clk 0:02:38.8]} 10... cxd5 {[%clk 0:02:42.5]}
11. Nxg6 {[%clk 0:02:39.3]} 11... hxg6 {[%clk 0:02:42.4]} 12. Rc1 {[%clk
0:02:40.2]} 12... e6 {[%clk 0:02:34.7]} 13. h4 {[%clk 0:02:40]} 13... Bd6 {[%clk
0:02:26.9]} 14. g3 {[%clk 0:02:39.7]} 14... Ke7 {[%clk 0:02:26.9]} 15. Bg2
{[%clk 0:02:33.9]} 15... Rac8 {[%clk 0:02:23.3]} 16. e4 {[%clk 0:02:33.9]} 16...
Rxc1+ {[%clk 0:02:17.7]} 17. Bxc1 {[%clk 0:02:34.8]} 17... Nf6 {[%clk
0:02:10.2]} 18. Bg5 {[%clk 0:02:17.2]} 18... dxe4 {[%clk 0:02:09.7]} 19. Bxe4
{[%clk 0:02:18.1]} 19... Kd7 {[%clk 0:02:10.2]} 20. Bxb7 {[%clk 0:01:48.5]}
20... Rb8 {[%clk 0:02:08.6]} 21. Bg2 {[%clk 0:01:45.5]} 21... Rxb3 {[%clk
0:02:07.2]} 22. O-O {[%clk 0:01:45.9]} 22... a5 {[%clk 0:01:54]} 23. Ra1 {[%clk
0:01:23.9]} 23... Bb4 {[%clk 0:01:52.8]} 24. Ra2 {[%clk 0:01:18]} 24... Rd3
{[%clk 0:01:46.7]} 25. Be3 {[%clk 0:01:17.6]} 25... Nd5 {[%clk 0:01:45]} 26.
Bxd5 {[%clk 0:01:13.7]} 26... exd5 {[%clk 0:01:45.9]} 27. Kf1 {[%clk 0:01:13.9]}
27... Rd1+ {[%clk 0:01:36.5]} 28. Ke2 {[%clk 0:01:14]} 28... Re1+ {[%clk
0:01:28.2]} 29. Kd3 {[%clk 0:01:11.8]} 29... Rd1+ {[%clk 0:00:53]} 30. Kc2
{[%clk 0:01:08.4]} 30... Rf1 {[%clk 0:00:52.7]} 31. b3 {[%clk 0:01:06.8]} 31...
f6 {[%clk 0:00:50.2]} 32. Rb2 {[%clk 0:00:47.1]} 32... Kc6 {[%clk 0:00:30.9]}
33. Kd3 {[%clk 0:00:44.8]} 33... Kd7 {[%clk 0:00:19.5]} 34. Ke2 {[%clk
0:00:41.7]} 34... Ra1 {[%clk 0:00:19.1]} 35. Bd2 {[%clk 0:00:41.5]} 35... Bxd2
{[%clk 0:00:16.3]} 36. Kxd2 {[%clk 0:00:42.4]} 36... Rf1 {[%clk 0:00:12.7]} 37.
Ke3 {[%clk 0:00:42.3]} 37... Rc1 {[%clk 0:00:12.9]} 38. Ra2 {[%clk 0:00:36.1]}
38... Rc3+ {[%clk 0:00:13]} 39. Kf4 {[%clk 0:00:36.3]} 39... Rxb3 {[%clk
0:00:13.5]} 40. Rxa5 {[%clk 0:00:36.1]} 40... Ke6 {[%clk 0:00:12.6]} 41. Ra6+
{[%clk 0:00:36.3]} 41... Ke7 {[%clk 0:00:10.4]} 42. Ra7+ {[%clk 0:00:36.8]}
42... Ke6 {[%clk 0:00:11]} 43. Rxg7 {[%clk 0:00:36.1]} 43... Rd3 {[%clk
0:00:06.4]} 44. Rxg6 {[%clk 0:00:36.1]} 44... Rxd4+ {[%clk 0:00:07]} 45. Ke3
{[%clk 0:00:36.6]} 45... Re4+ {[%clk 0:00:07.1]} 46. Kf3 {[%clk 0:00:32.7]}
46... Ra4 {[%clk 0:00:02.8]} 47. Rg8 {[%clk 0:00:31.5]} 47... Ra7 {[%clk
0:00:02.8]} 48. Re8+ {[%clk 0:00:25.8]} 48... Kf5 {[%clk 0:00:02.9]} 49. Re1
{[%clk 0:00:26.7]} 49... Rg7 {[%clk 0:00:01.7]} 50. Rd1 {[%clk 0:00:25.9]} 50...
Rd7 {[%clk 0:00:02]} 51. g4+ {[%clk 0:00:26.2]} 51... Ke5 {[%clk 0:00:02.4]} 52.
Re1+ {[%clk 0:00:24.3]} 52... Kd4 {[%clk 0:00:02.2]} 53. Kf4 {[%clk 0:00:24.8]}
53... Kc3 {[%clk 0:00:02.6]} 54. h5 {[%clk 0:00:24]} 54... d4 {[%clk 0:00:02.7]}
55. Kf5 {[%clk 0:00:22.4]} 55... Rd6 {[%clk 0:00:02.8]} 56. h6 {[%clk
0:00:21.7]} 56... d3 {[%clk 0:00:03.4]} 57. h7 {[%clk 0:00:21.3]} 57... Rd8
{[%clk 0:00:03.9]} 58. Kxf6 {[%clk 0:00:21.5]} 58... d2 {[%clk 0:00:01.5]} 59.
Rh1 {[%clk 0:00:21.4]} 1-0

[Event "Late-Titled-Tuesday-Blitz-April-16-2024"]
[Site "Chess.com"]
[Date "2024.04.16"]
[Round "4"]
[White "Fradi82"]
[Black "szachmistrz2500"]
[Result "1-0"]
[WhiteElo "2190"]
[BlackElo "2443"]
[TimeControl "180+1"]
[EndTime "14:38:20 PDT"]
[Termination "Fradi82 won on time"]

1. e4 {[%clk 0:02:51.7]} 1... e6 {[%clk 0:03:00.1]} 2. Qe2 {[%clk 0:02:50.5]}
2... c5 {[%clk 0:02:57.2]} 3. Nf3 {[%clk 0:02:48.6]} 3... Nc6 {[%clk 0:02:55.9]}
4. g3 {[%clk 0:02:47.3]} 4... Nf6 {[%clk 0:02:48.7]} 5. Bg2 {[%clk 0:02:45.6]}
5... Be7 {[%clk 0:02:43.8]} 6. O-O {[%clk 0:02:43]} 6... O-O {[%clk 0:02:43.7]}
7. e5 {[%clk 0:02:43.2]} 7... Nd5 {[%clk 0:02:43]} 8. c4 {[%clk 0:02:43.3]} 8...
Ndb4 {[%clk 0:02:42.7]} 9. Na3 {[%clk 0:02:40.8]} 9... d5 {[%clk 0:02:39.1]} 10.
d3 {[%clk 0:02:40.2]} 10... dxc4 {[%clk 0:02:30]} 11. dxc4 {[%clk 0:02:40.5]}
11... Qd3 {[%clk 0:02:29.8]} 12. Qxd3 {[%clk 0:02:38.7]} 12... Nxd3 {[%clk
0:02:29.7]} 13. Bf4 {[%clk 0:02:36.5]} 13... Nxf4 {[%clk 0:02:20.9]} 14. gxf4
{[%clk 0:02:36.4]} 14... Rd8 {[%clk 0:02:16.6]} 15. Rad1 {[%clk 0:02:35.7]}
15... Bd7 {[%clk 0:02:15.1]} 16. Nb5 {[%clk 0:02:34.3]} 16... Be8 {[%clk
0:02:12.5]} 17. Nd6 {[%clk 0:02:33.2]} 17... Rab8 {[%clk 0:01:55.4]} 18. Rd2
{[%clk 0:02:23.5]} 18... Na5 {[%clk 0:01:50.8]} 19. b3 {[%clk 0:02:20.4]} 19...
Bc6 {[%clk 0:01:50.8]} 20. Rfd1 {[%clk 0:02:18.7]} 20... b6 {[%clk 0:01:41.1]}
21. Kf1 {[%clk 0:02:06.8]} 21... g6 {[%clk 0:01:40]} 22. h3 {[%clk 0:02:02.1]}
22... Rd7 {[%clk 0:01:34.4]} 23. Nh2 {[%clk 0:01:41.7]} 23... Bxg2+ {[%clk
0:01:29.8]} 24. Kxg2 {[%clk 0:01:42.6]} 24... Rbd8 {[%clk 0:01:28.4]} 25. Ng4
{[%clk 0:01:35]} 25... h5 {[%clk 0:01:24.9]} 26. Nh6+ {[%clk 0:01:04.1]} 26...
Kh7 {[%clk 0:01:21.4]} 27. Nhxf7 {[%clk 0:01:03.4]} 27... Rf8 {[%clk 0:01:19]}
28. Ng5+ {[%clk 0:00:58.8]} 28... Bxg5 {[%clk 0:01:16]} 29. fxg5 {[%clk
0:00:59.7]} 29... Nc6 {[%clk 0:01:07.8]} 30. Ne4 {[%clk 0:00:39]} 30... Rxd2
{[%clk 0:01:06.7]} 31. Rxd2 {[%clk 0:00:38.9]} 31... Nxe5 {[%clk 0:01:02.8]} 32.
Nf6+ {[%clk 0:00:39.2]} 32... Kg7 {[%clk 0:01:02.5]} 33. Re2 {[%clk 0:00:39.7]}
33... Nd3 {[%clk 0:01:00.3]} 34. Kg3 {[%clk 0:00:36.1]} 34... Kf7 {[%clk
0:00:57.6]} 35. Re3 {[%clk 0:00:33.8]} 35... Nb4 {[%clk 0:00:55.3]} 36. Rf3
{[%clk 0:00:30.4]} 36... Ke7 {[%clk 0:00:54.2]} 37. a3 {[%clk 0:00:26.9]} 37...
Nc6 {[%clk 0:00:53.8]} 38. Rd3 {[%clk 0:00:24.8]} 38... Nd4 {[%clk 0:00:53.6]}
39. b4 {[%clk 0:00:24.7]} 39... Nf5+ {[%clk 0:00:43.7]} 40. Kf4 {[%clk
0:00:22.8]} 40... Nd4 {[%clk 0:00:41.2]} 41. Ke5 {[%clk 0:00:21.2]} 41... Rd8
{[%clk 0:00:36.2]} 42. bxc5 {[%clk 0:00:19.7]} 42... Nc6+ {[%clk 0:00:30.1]} 43.
Ke4 {[%clk 0:00:19.8]} 43... Rxd3 {[%clk 0:00:30.2]} 44. Kxd3 {[%clk 0:00:20.1]}
44... bxc5 {[%clk 0:00:31.1]} 45. Ne4 {[%clk 0:00:20.4]} 45... Ne5+ {[%clk
0:00:29.8]} 46. Kc3 {[%clk 0:00:20.2]} 46... Nf3 {[%clk 0:00:25.3]} 47. a4
{[%clk 0:00:19.6]} 47... a5 {[%clk 0:00:24.1]} 48. Nxc5 {[%clk 0:00:19.7]} 48...
Nxg5 {[%clk 0:00:23.6]} 49. h4 {[%clk 0:00:20.4]} 49... Nf3 {[%clk 0:00:23.3]}
50. Nb7 {[%clk 0:00:20.7]} 50... Nxh4 {[%clk 0:00:22.9]} 51. Nxa5 {[%clk
0:00:21.5]} 51... Nf5 {[%clk 0:00:23]} 52. Nc6+ {[%clk 0:00:21.7]} 52... Kd6
{[%clk 0:00:22.5]} 53. Nd4 {[%clk 0:00:21.6]} 53... Nxd4 {[%clk 0:00:20.8]} 54.
Kxd4 {[%clk 0:00:22.5]} 54... h4 {[%clk 0:00:20]} 55. Ke3 {[%clk 0:00:22.3]}
55... g5 {[%clk 0:00:16.5]} 56. Kf3 {[%clk 0:00:22.4]} 56... h3 {[%clk
0:00:15.5]} 57. Kg3 {[%clk 0:00:22.5]} 57... g4 {[%clk 0:00:15.6]} 58. f3 {[%clk
0:00:22.9]} 58... gxf3 {[%clk 0:00:15.1]} 59. Kxf3 {[%clk 0:00:22.9]} 59... Kc5
{[%clk 0:00:05.6]} 60. a5 {[%clk 0:00:23.3]} 60... e5 {[%clk 0:00:03.1]} 61. Kg3
{[%clk 0:00:23.3]} 61... e4 {[%clk 0:00:02.5]} 62. Kxh3 {[%clk 0:00:23.7]} 1-0